fUST/lending_fUST_20251010
["ID","MTS","AMOUNT","RATE_DAILY","PERIOD"]
[390600096,1760100657502,-4740.98,0.0001863,2]
[390600097,1760100657512,-361.9,0.0001863,2]
[390600098,1760100657521,-1636.15,0.0001863,2]
[390600099,1760100657531,-636.74,0.0001863,2]
[390600100,1760100657541,-1907.54,0.0001863,2]
[390600101,1760100657550,-500.0,0.0001863,2]
[390600102,1760100657560,-680.61,0.0001863,2]
[390600103,1760100657569,-2232.5,0.0001863,2]
[390600104,1760100657579,-718.36,0.0001863,2]
[390600105,1760100657590,-1107.56,0.0001863,2]
[390600106,1760100657599,-910.01,0.0001863,2]
[390600107,1760100657609,-644.11,0.0001863,2]
[390600108,1760100657618,-3977.38,0.0001863,2]
[390600109,1760100657628,-2829.06,0.0001863,2]
[390600110,1760100657638,-661.07,0.0001863,2]
[390600111,1760100657647,-947.3,0.0001863,2]
[390600112,1760100657656,-1130.39,0.0001863,2]
[390600113,1760100657666,-500.0,0.0001863,2]
[390600114,1760100657675,-582.38,0.0001863,2]
[390600115,1760100657685,-725.03,0.0001863,2]
[390600116,1760100657695,-876.53,0.0001863,2]
[390600117,1760100657704,-500.0,0.0001863,2]
[390600118,1760100657714,-500.0,0.0001863,2]
[390600119,1760100657724,-1845.07,0.0001863,2]
[390600120,1760100657739,-513.32,0.0001863,2]
[390600121,1760100657749,-1930.29,0.0001863,2]
[390600122,1760100657759,-500.0,0.0001863,2]
[390600123,1760100657769,-500.0,0.0001863,2]
[390600124,1760100657779,-3127.98,0.0001863,2]
[390600125,1760100657788,-713.07,0.0001863,2]
[390600126,1760100657798,-691.43,0.0001863,2]
[390600127,1760100657807,-500.0,0.0001863,2]
[390600128,1760100657819,-501.38,0.0001863,2]
[390600129,1760100657829,-300.45976289,0.0001863,2]
[390600130,1760100657839,-500.0,0.0001863,2]
[390600131,1760100657848,-585.78,0.0001863,2]
[390600132,1760100657857,-1532.17,0.0001863,2]
[390600133,1760100657867,-728.07,0.0001863,2]
[390600134,1760100657877,-786.43,0.0001863,2]
[390600135,1760100657886,-914.65,0.0001863,2]
[390600136,1760100657896,-1716.21817869,0.0001863,2]
[390600137,1760100686935,2725.7,0.00028767,120]
[390600139,1760100723409,632.0,0.00028767,120]
[390600140,1760100762544,3050.0,0.00029482,60]
[390600141,1760100808922,3000.0,0.00024,30]
[390600142,1760100871296,500.0,8.219e-05,2]
[390600143,1760100871794,500.0,8.493e-05,2]
[390600145,1760100915440,300.0,0.000137,2]
[390600146,1760100928617,300.0,0.000137,2]
[390600147,1760100942077,300.0,0.000137,2]
[390600148,1760100955637,300.0,0.000137,2]
[390600149,1760100969490,300.0,0.000137,2]
[390600150,1760100977038,3254.34,0.00028767,120]
[390600151,1760100987370,150.24,0.00014,10]
[390600152,1760101111448,153.717768,0.0002352,30]
[390600209,1760101322583,666.0,0.00015372,2]
[390600215,1760101334943,666.66666667,0.00023298,30]
[390600261,1760101492338,47896.22122568,0.0002875,120]
[390600272,1760101553194,1444.0,0.00026137,120]
[390600292,1760101680046,268.69,0.00015135,2]
[390600475,1760101837896,-470.6011362,0.00015674,2]
[390600476,1760101837906,-302.55311902,0.00015674,2]
[390600477,1760101837915,-227.5,0.000157,2]
[390600478,1760101837924,-160.0,0.000157,2]
[390600479,1760101837933,-162.0,0.0001589,3]
[390600480,1760101837943,-347.93608688,0.00016274,2]
[390600481,1760101837951,-1037.68018076,0.00016338,2]
[390600482,1760101837961,-300.0,0.00016436,2]
[390600483,1760101837971,-500.0,0.00016437,2]
[390600484,1760101837980,-569.83394371,0.00016437,2]
[390600485,1760101837990,-155.0,0.00016437,2]
[390600486,1760101838000,-460.29624302,0.00016437,2]
[390600487,1760101838010,-443.38395292,0.00016437,2]
[390600488,1760101838019,-349.54904459,0.00016437,2]
[390600489,1760101838028,-237.51004078,0.00016437,2]
[390600490,1760101838038,-500.0,0.00016438,2]
[390600491,1760101838049,-500.0,0.00016438,2]
[390600492,1760101838059,-500.0,0.00016438,2]
[390600493,1760101838069,-300.0,0.00016438,2]
[390600494,1760101838078,-300.0,0.00016438,2]
[390600495,1760101838088,-300.0,0.00016438,2]
[390600496,1760101838099,-500.0,0.00016438,2]
[390600497,1760101838109,-500.0,0.00016438,2]
[390600498,1760101838119,-500.0,0.00016438,2]
[390600499,1760101838128,-173.745,0.00016438,2]
[390600500,1760101838138,-500.0,0.00016438,2]
[390600501,1760101838148,-500.0,0.00016438,2]
[390600502,1760101838157,-636.13,0.00016438,2]
[390600503,1760101838167,-500.53628959,0.00016438,2]
[390600504,1760101838176,-500.0,0.00016438,2]
[390600505,1760101838186,-500.0,0.00016438,2]
[390600506,1760101838195,-500.0,0.00016438,2]
[390600507,1760101838205,-1333.52,0.00016438,2]
[390600508,1760101838214,-500.0,0.00016438,2]
[390600509,1760101838223,-500.0,0.00016438,2]
[390600510,1760101838233,-500.0,0.00016438,2]
[390600511,1760101838242,-500.0,0.00016438,2]
[390600512,1760101838252,-500.0,0.00016438,2]
[390600513,1760101838261,-246.05984314,0.00016438,2]
[390600514,1760101838271,-500.0,0.00016438,2]
[390600515,1760101838280,-267.5749757,0.00016438,2]
[390600516,1760101838290,-567.2,0.00016438,2]
[390600517,1760101838301,-500.0,0.00016438,2]
[390600518,1760101838311,-500.0,0.00016438,2]
[390600519,1760101838321,-499.17671403,0.00016438,2]
[390600520,1760101838330,-500.0,0.00016438,2]
[390600521,1760101838341,-500.0,0.00016438,2]
[390600522,1760101838352,-580.56,0.00016438,2]
[390600523,1760101838362,-500.0,0.00016438,2]
[390600524,1760101838372,-462.77192884,0.00016438,2]
[390600525,1760101838382,-500.0,0.00016438,2]
[390600526,1760101838392,-411.16439146,0.00016438,2]
[390600527,1760101838402,-500.0,0.00016438,2]
[390600528,1760101838412,-501.61429026,0.00016438,2]
[390600529,1760101838424,-500.0,0.00016438,2]
[390600530,1760101838435,-502.14644805,0.00016438,2]
[390600531,1760101838444,-500.0,0.00016438,2]
[390600532,1760101838454,-501.22383744,0.00016438,2]
[390600533,1760101838464,-500.0,0.00016438,2]
[390600534,1760101838475,-500.0,0.00016438,2]
[390600535,1760101838484,-500.0,0.00016438,2]
[390600536,1760101838495,-181.0667701,0.00016438,2]
[390600537,1760101838510,-500.0,0.00016438,2]
[390600538,1760101838520,-501.31270097,0.00016438,2]
[390600539,1760101838529,-500.0,0.00016438,2]
[390600540,1760101838540,-500.0,0.00016438,2]
[390600541,1760101838549,-584.28,0.00016438,2]
[390600542,1760101838559,-500.0,0.00016438,2]
[390600543,1760101838569,-500.0,0.00016438,2]
[390600544,1760101838578,-500.0,0.00016438,2]
[390600545,1760101838587,-215.2979259,0.00016438,2]
[390600546,1760101838598,-494.38384467,0.00016438,2]
[390600547,1760101838608,-500.0,0.00016438,2]
[390600548,1760101838618,-500.0,0.00016438,2]
[390600549,1760101838628,-500.0,0.00016438,2]
[390600550,1760101838638,-500.0,0.00016438,2]
[390600551,1760101838648,-500.0,0.00016438,2]
[390600552,1760101838658,-500.0,0.00016438,2]
[390600553,1760101838668,-500.0,0.00016438,2]
[390600554,1760101838678,-500.0,0.00016438,2]
[390600555,1760101838687,-502.4,0.00016438,2]
[390600556,1760101838697,-340.1190367,0.00016438,2]
[390600557,1760101838706,-500.93315784,0.00016438,2]
[390600558,1760101838715,-500.0,0.00016438,2]
[390600559,1760101838725,-500.0,0.00016438,2]
[390600560,1760101838734,-500.0,0.00016438,2]
[390600561,1760101838744,-462.03460363,0.00016438,2]
[390600562,1760101838754,-500.0,0.00016438,2]
[390600563,1760101838764,-500.0,0.00016438,2]
[390600564,1760101838774,-500.0,0.00016438,2]
[390600565,1760101838784,-500.0,0.00016438,2]
[390600566,1760101838794,-500.0,0.00016438,2]
[390600567,1760101838806,-249.23815358,0.00016438,2]
[390600568,1760101838816,-188.56000202,0.00016438,2]
[390600569,1760101838826,-500.0,0.00016438,2]
[390600570,1760101838837,-500.0,0.00016438,2]
[390600571,1760101838847,-619.36079251,0.00016438,2]
[390600572,1760101838858,-500.0,0.00016438,2]
[390600573,1760101838868,-500.0,0.00016438,2]
[390600574,1760101838877,-500.0,0.00016438,2]
[390600575,1760101838887,-500.0,0.00016438,2]
[390600576,1760101838898,-500.0,0.00016438,2]
[390600577,1760101838908,-500.0,0.00016438,2]
[390600578,1760101838917,-500.0,0.00016438,2]
[390600579,1760101838927,-517.36172355,0.00016438,2]
[390600580,1760101838936,-500.0,0.00016438,2]
[390600581,1760101838946,-500.0,0.00016438,2]
[390600582,1760101838955,-701.17,0.00016438,2]
[390600583,1760101838965,-500.0,0.00016438,2]
[390600584,1760101838974,-500.0,0.00016438,2]
[390600585,1760101838984,-500.0,0.00016438,2]
[390600586,1760101838994,-500.0,0.00016438,2]
[390600587,1760101839003,-500.0,0.00016438,2]
[390600588,1760101839220,-500.0,0.00016438,2]
[390600589,1760101839233,-500.0,0.00016438,2]
[390600590,1760101839244,-501.23123842,0.00016438,2]
[390600591,1760101839254,-500.0,0.00016438,2]
[390600592,1760101839264,-500.0,0.00016438,2]
[390600593,1760101839275,-500.0,0.00016438,2]
[390600594,1760101839285,-500.0,0.00016438,2]
[390600595,1760101839295,-500.0,0.00016438,2]
[390600596,1760101839304,-500.0,0.00016438,2]
[390600597,1760101839314,-500.0,0.00016438,2]
[390600598,1760101839323,-467.12520212,0.00016438,2]
[390600599,1760101839333,-500.0,0.00016438,2]
[390600600,1760101839342,-597.8,0.00016438,2]
[390600601,1760101839352,-500.0,0.00016438,2]
[390600602,1760101839362,-500.0,0.00016438,2]
[390600603,1760101839372,-500.0,0.00016438,2]
[390600604,1760101839382,-500.0,0.00016438,2]
[390600605,1760101839391,-500.0,0.00016438,2]
[390600606,1760101839400,-500.0,0.00016438,2]
[390600607,1760101839410,-500.0,0.00016438,2]
[390600608,1760101839419,-500.0,0.00016438,2]
[390600609,1760101839432,-500.0,0.00016438,2]
[390600610,1760101839442,-500.0,0.00016438,2]
[390600612,1760101839451,-501.66290963,0.00016438,2]
[390600613,1760101839460,-500.0,0.00016438,2]
[390600615,1760101839469,-500.0,0.00016438,2]
[390600617,1760101839478,-500.0,0.00016438,2]
[390600618,1760101839488,-500.0,0.00016438,2]
[390600619,1760101839497,-500.0,0.00016438,2]
[390600620,1760101839506,-500.0,0.00016438,2]
[390600622,1760101839515,-500.0,0.00016438,2]
[390600624,1760101839524,-502.87965002,0.00016438,2]
[390600625,1760101839535,-464.29749969,0.00016438,2]
[390600626,1760101839546,-500.0,0.00016438,2]
[390600628,1760101839555,-648.55491075,0.00016438,2]
[390600630,1760101839565,-1141.37,0.00016438,2]
[390600631,1760101839575,-500.0,0.00016438,2]
[390600632,1760101839585,-210.09295459,0.00016438,2]
[390600633,1760101839595,-506.32865722,0.00016438,2]
[390600634,1760101839606,-676.23,0.00016438,2]
[390600635,1760101839616,-500.0,0.00016438,2]
[390600636,1760101839626,-636.64,0.00016438,2]
[390600637,1760101839636,-500.0,0.00016438,2]
[390600638,1760101839646,-500.0,0.00016438,2]
[390600639,1760101839655,-771.93,0.00016438,2]
[390600640,1760101839665,-500.0,0.00016438,2]
[390600641,1760101839675,-500.0,0.00016438,2]
[390600642,1760101839684,-500.0,0.00016438,2]
[390600643,1760101839694,-500.0,0.00016438,2]
[390600644,1760101839703,-419.24689647,0.00016438,2]
[390600645,1760101839713,-500.0,0.00016438,2]
[390600646,1760101839723,-500.0,0.00016438,2]
[390600647,1760101839733,-500.0,0.00016438,2]
[390600648,1760101839743,-500.0,0.00016438,2]
[390600649,1760101839752,-500.0,0.00016438,2]
[390600650,1760101839761,-500.0,0.00016438,2]
[390600651,1760101839770,-500.0,0.00016438,2]
[390600652,1760101839780,-500.0,0.00016438,2]
[390600653,1760101839789,-500.0,0.00016438,2]
[390600654,1760101839798,-500.0,0.00016438,2]
[390600655,1760101839807,-500.0,0.00016438,2]
[390600656,1760101839816,-500.0,0.00016438,2]
[390600657,1760101839825,-501.73212734,0.00016438,2]
[390600658,1760101839834,-500.0,0.00016438,2]
[390600659,1760101839844,-469.30839582,0.00016438,2]
[390600660,1760101839854,-500.0,0.00016438,2]
[390600661,1760101839864,-369.60936673,0.00016438,2]
[390600662,1760101839873,-500.0,0.00016438,2]
[390600663,1760101839883,-500.0,0.00016438,2]
[390600664,1760101839893,-500.0,0.00016438,2]
[390600665,1760101839902,-459.76,0.00016438,2]
[390600666,1760101839911,-530.71968817,0.00016438,2]
[390600667,1760101839920,-183.60611055,0.00016438,2]
[390600668,1760101839929,-500.0,0.00016438,2]
[390600669,1760101839938,-500.0,0.00016438,2]
[390600670,1760101839948,-500.0,0.00016438,2]
[390600671,1760101839957,-500.0,0.00016438,2]
[390600672,1760101839966,-500.0,0.00016438,2]
[390600673,1760101839976,-500.0,0.00016438,2]
[390600674,1760101839985,-340.0008303,0.00016438,2]
[390600675,1760101839994,-500.0,0.00016438,2]
[390600676,1760101840003,-500.0,0.00016438,2]
[390600677,1760101840012,-500.0,0.00016438,2]
[390600678,1760101840021,-1115.81,0.00016438,2]
[390600679,1760101840030,-500.0,0.00016438,2]
[390600680,1760101840039,-500.0,0.00016438,2]
[390600681,1760101840048,-500.0,0.00016438,2]
[390600682,1760101840057,-500.0,0.00016438,2]
[390600683,1760101840067,-500.0,0.00016438,2]
[390600684,1760101840076,-500.0,0.00016438,2]
[390600685,1760101840084,-500.0,0.00016438,2]
[390600686,1760101840094,-500.0,0.00016438,2]
[390600687,1760101840103,-500.0,0.00016438,2]
[390600688,1760101840112,-1241.99,0.00016438,2]
[390600689,1760101840122,-500.0,0.00016438,2]
[390600690,1760101840131,-500.0,0.00016438,2]
[390600691,1760101840140,-500.0,0.00016438,2]
[390600692,1760101840149,-4732.41,0.00016438,2]
[390600693,1760101840158,-500.0,0.00016438,2]
[390600694,1760101840167,-501.60536764,0.00016438,2]
[390600695,1760101840176,-500.0,0.00016438,2]
[390600696,1760101840186,-422.54032191,0.00016438,2]
[390600697,1760101840195,-500.0,0.00016438,2]
[390600698,1760101840204,-500.0,0.00016438,2]
[390600699,1760101840213,-500.0,0.00016438,2]
[390600700,1760101840223,-500.0,0.00016438,2]
[390600701,1760101840232,-500.0,0.00016438,2]
[390600702,1760101840241,-500.0,0.00016438,2]
[390600703,1760101840251,-500.0,0.00016438,2]
[390600704,1760101840260,-500.0,0.00016438,2]
[390600705,1760101840269,-500.0,0.00016438,2]
[390600706,1760101840278,-500.0,0.00016438,2]
[390600707,1760101840287,-785.88,0.00016438,2]
[390600708,1760101840297,-500.0,0.00016438,2]
[390600709,1760101840305,-505.17,0.00016438,2]
[390600710,1760101840314,-617.27,0.00016438,2]
[390600711,1760101840323,-500.0,0.00016438,2]
[390600712,1760101840332,-500.0,0.00016438,2]
[390600713,1760101840341,-500.0,0.00016438,2]
[390600714,1760101840350,-500.0,0.00016438,2]
[390600715,1760101840359,-500.0,0.00016438,2]
[390600716,1760101840368,-332.24751644,0.00016438,2]
[390600717,1760101840377,-1623.93,0.00016438,2]
[390600718,1760101840385,-508.61087227,0.00016438,2]
[390600719,1760101840394,-500.0,0.00016438,2]
[390600720,1760101840403,-504.32650793,0.00016438,2]
[390600721,1760101840412,-504.46235689,0.00016438,2]
[390600722,1760101840421,-500.0,0.00016438,2]
[390600723,1760101840436,-941.94,0.00016438,2]
[390600724,1760101840445,-941.94,0.00016438,2]
[390600725,1760101840455,-941.94,0.00016438,2]
[390600726,1760101840463,-941.94,0.00016438,2]
[390600727,1760101840474,-941.94,0.00016438,2]
[390600728,1760101840483,-1499.8,0.00016438,2]
[390600730,1760101840492,-941.94,0.00016438,2]
[390600731,1760101840503,-941.94,0.00016438,2]
[390600732,1760101840512,-941.94,0.00016438,2]
[390600733,1760101840522,-500.0,0.00016438,2]
[390600734,1760101840531,-500.0,0.00016438,2]
[390600736,1760101840540,-500.0,0.00016438,2]
[390600737,1760101840550,-502.26101463,0.00016438,2]
[390600738,1760101840560,-500.0,0.00016438,2]
[390600739,1760101840569,-500.0,0.00016438,2]
[390600740,1760101840578,-500.0,0.00016438,2]
[390600742,1760101840587,-2149.34,0.00016438,2]
[390600743,1760101840596,-500.0,0.00016438,2]
[390600744,1760101840606,-502.17831471,0.00016438,2]
[390600746,1760101840616,-500.0,0.00016438,2]
[390600747,1760101840626,-4543.44,0.00016438,2]
[390600748,1760101840635,-620.98,0.00016438,2]
[390600749,1760101840644,-431.38248543,0.00016438,2]
[390600750,1760101840653,-500.0,0.00016438,2]
[390600751,1760101840662,-500.0,0.00016438,2]
[390600752,1760101840672,-500.0,0.00016438,2]
[390600753,1760101840681,-500.0,0.00016438,2]
[390600754,1760101840691,-500.0,0.00016438,2]
[390600755,1760101840701,-500.0,0.00016438,2]
[390600756,1760101840710,-501.66725245,0.00016438,2]
[390600757,1760101840720,-500.0,0.00016438,2]
[390600758,1760101840728,-1015.27,0.00016438,2]
[390600759,1760101840737,-610.21,0.00016438,2]
[390600760,1760101840747,-607.2,0.00016438,2]
[390600761,1760101840756,-605.98,0.00016438,2]
[390600762,1760101840765,-502.18,0.00016438,2]
[390600763,1760101840774,-501.76680069,0.00016438,2]
[390600764,1760101840783,-963.28,0.00016438,2]
[390600765,1760101840793,-500.0,0.00016438,2]
[390600766,1760101840803,-500.0,0.00016438,2]
[390600767,1760101840811,-500.0,0.00016438,2]
[390600768,1760101840822,-5962.37,0.00016438,2]
[390600769,1760101840830,-623.9,0.00016438,2]
[390600770,1760101840839,-533.71,0.00016438,2]
[390600771,1760101840848,-500.0,0.00016438,2]
[390600772,1760101840858,-500.0,0.00016438,2]
[390600773,1760101840867,-500.0,0.00016438,2]
[390600774,1760101840877,-500.0,0.00016438,2]
[390600775,1760101840886,-502.08894967,0.00016438,2]
[390600776,1760101840895,-500.0,0.00016438,2]
[390600777,1760101840905,-1758.04,0.00016438,2]
[390600778,1760101840914,-500.0,0.00016438,2]
[390600779,1760101840924,-876.34,0.00016438,2]
[390600780,1760101840933,-1000.0,0.00016438,2]
[390600781,1760101840942,-500.0,0.00016438,2]
[390600782,1760101840951,-500.0,0.00016438,2]
[390600783,1760101840960,-500.0,0.00016438,2]
[390600784,1760101840969,-590.43,0.00016438,2]
[390600785,1760101840979,-500.0,0.00016438,2]
[390600786,1760101840988,-3645.93,0.00016438,2]
[390600787,1760101840997,-500.0,0.00016438,2]
[390600788,1760101841007,-828.89,0.00016438,2]
[390600789,1760101841017,-664.61,0.00016438,2]
[390600790,1760101841026,-2593.3,0.00016438,2]
[390600791,1760101841036,-500.0,0.00016438,2]
[390600792,1760101841045,-500.0,0.00016438,2]
[390600793,1760101841055,-500.0,0.00016438,2]
[390600794,1760101841064,-500.0,0.00016438,2]
[390600795,1760101841073,-501.07654025,0.00016438,2]
[390600796,1760101841083,-2867.32,0.00016438,2]
[390600797,1760101841092,-500.0,0.00016438,2]
[390600798,1760101841102,-176.31719944,0.00016438,2]
[390600799,1760101841111,-500.0,0.00016438,2]
[390600800,1760101841120,-500.0,0.00016438,2]
[390600801,1760101841129,-500.0,0.00016438,2]
[390600802,1760101841138,-500.0,0.00016438,2]
[390600803,1760101841147,-500.0,0.00016438,2]
[390600804,1760101841156,-500.0,0.00016438,2]
[390600805,1760101841165,-500.0,0.00016438,2]
[390600806,1760101841175,-500.0,0.00016438,2]
[390600807,1760101841184,-238.09,0.00016438,2]
[390600808,1760101841194,-500.0,0.00016438,2]
[390600809,1760101841203,-500.0,0.00016438,2]
[390600810,1760101841214,-500.0,0.00016438,2]
[390600811,1760101841223,-502.06924811,0.00016438,2]
[390600812,1760101841232,-500.0,0.00016438,2]
[390600813,1760101841241,-1691.32,0.00016438,2]
[390600814,1760101841251,-500.0,0.00016438,2]
[390600815,1760101841260,-500.0,0.00016438,2]
[390600816,1760101841270,-658.5,0.00016438,2]
[390600817,1760101841279,-500.0,0.00016438,2]
[390600818,1760101841288,-1036.19,0.00016438,2]
[390600819,1760101841298,-500.0,0.00016438,2]
[390600820,1760101841307,-500.0,0.00016438,2]
[390600821,1760101841316,-2664.9,0.00016438,2]
[390600822,1760101841326,-500.0,0.00016438,2]
[390600823,1760101841335,-2664.9,0.00016438,2]
[390600824,1760101841344,-2664.9,0.00016438,2]
[390600825,1760101841354,-500.0,0.00016438,2]
[390600826,1760101841363,-2664.9,0.00016438,2]
[390600827,1760101841372,-2664.9,0.00016438,2]
[390600828,1760101841382,-2664.9,0.00016438,2]
[390600829,1760101841391,-2664.9,0.00016438,2]
[390600830,1760101841401,-2664.9,0.00016438,2]
[390600831,1760101841410,-502.14485631,0.00016438,2]
[390600832,1760101841420,-653.65,0.00016438,2]
[390600833,1760101841434,-500.0,0.00016438,2]
[390600834,1760101841443,-500.0,0.00016438,2]
[390600835,1760101841452,-224.09359062,0.00016438,2]
[390600836,1760101841462,-500.0,0.00016438,2]
[390600837,1760101841472,-501.09966293,0.00016438,2]
[390600838,1760101841481,-500.0,0.00016438,2]
[390600839,1760101841490,-500.0,0.00016438,2]
[390600840,1760101841499,-500.0,0.00016438,2]
[390600841,1760101841509,-500.0,0.00016438,2]
[390600842,1760101841518,-1340.65,0.00016438,2]
[390600843,1760101841527,-500.0,0.00016438,2]
[390600844,1760101841536,-1769.43,0.00016438,2]
[390600845,1760101841546,-500.0,0.00016438,2]
[390600846,1760101841556,-500.0,0.00016438,2]
[390600847,1760101841565,-500.0,0.00016438,2]
[390600848,1760101841574,-720.9,0.00016438,2]
[390600849,1760101841584,-500.0,0.00016438,2]
[390600850,1760101841593,-500.0,0.00016438,2]
[390600851,1760101841603,-500.0,0.00016438,2]
[390600852,1760101841613,-500.0,0.00016438,2]
[390600853,1760101841622,-500.4640918,0.00016438,2]
[390600854,1760101841631,-500.0,0.00016438,2]
[390600855,1760101841641,-500.0,0.00016438,2]
[390600856,1760101841650,-500.0,0.00016438,2]
[390600857,1760101841659,-637.06,0.00016438,2]
[390600858,1760101841669,-1916.59,0.00016438,2]
[390600859,1760101841678,-500.0,0.00016438,2]
[390600860,1760101841687,-500.67279678,0.00016438,2]
[390600861,1760101841697,-500.0,0.00016438,2]
[390600862,1760101841706,-669.81,0.00016438,2]
[390600863,1760101841716,-2464.24,0.00016438,2]
[390600864,1760101841725,-800.32,0.00016438,2]
[390600865,1760101841735,-500.0,0.00016438,2]
[390600866,1760101841745,-500.0,0.00016438,2]
[390600867,1760101841754,-500.0,0.00016438,2]
[390600868,1760101841764,-500.0,0.00016438,2]
[390600869,1760101841773,-218.75400835,0.00016438,2]
[390600870,1760101841782,-500.0,0.00016438,2]
[390600871,1760101841792,-500.0,0.00016438,2]
[390600872,1760101841800,-500.0,0.00016438,2]
[390600873,1760101841810,-500.0,0.00016438,2]
[390600874,1760101841819,-500.0,0.00016438,2]
[390600875,1760101841829,-500.0,0.00016438,2]
[390600876,1760101841838,-500.0,0.00016438,2]
[390600877,1760101841848,-618.56,0.00016438,2]
[390600878,1760101841859,-500.0,0.00016438,2]
[390600879,1760101841868,-500.0,0.00016438,2]
[390600880,1760101841876,-752.93,0.00016438,2]
[390600881,1760101841885,-500.0,0.00016438,2]
[390600882,1760101841894,-811.6,0.00016438,2]
[390600883,1760101841903,-825.33,0.00016438,2]
[390600884,1760101841912,-500.0,0.00016438,2]
[390600885,1760101841922,-560.25,0.00016438,2]
[390600886,1760101841931,-754.04,0.00016438,2]
[390600887,1760101841940,-500.0,0.00016438,2]
[390600888,1760101841949,-500.0,0.00016438,2]
[390600889,1760101841958,-500.0,0.00016438,2]
[390600890,1760101841967,-500.0,0.00016438,2]
[390600891,1760101841977,-525.73,0.00016438,2]
[390600892,1760101841985,-500.0,0.00016438,2]
[390600893,1760101841995,-500.0,0.00016438,2]
[390600894,1760101842003,-500.0,0.00016438,2]
[390600895,1760101842013,-500.0,0.00016438,2]
[390600896,1760101842021,-517.73,0.00016438,2]
[390600897,1760101842030,-365.46772809,0.00016438,2]
[390600898,1760101842040,-200.0,0.00016438,10]
[390600899,1760101842049,-500.0,0.00016438,2]
[390600900,1760101842059,-200.0,0.00016438,10]
[390600901,1760101842069,-200.0,0.00016438,10]
[390600902,1760101842078,-200.0,0.00016438,10]
[390600903,1760101842088,-414.2972915,0.00016438,2]
[390600904,1760101842098,-1238.36,0.00016438,2]
[390600905,1760101842110,-500.0,0.00016438,2]
[390600906,1760101842120,-1568.64,0.00016438,2]
[390600907,1760101842128,-500.0,0.00016438,2]
[390600908,1760101842136,-1000.0,0.00016438,2]
[390600909,1760101842146,-700.0,0.000165,2]
[390600910,1760101842156,-1037.68018076,0.00016544,2]
[390600911,1760101842165,-941.94,0.00016547,2]
[390600912,1760101842174,-2664.9,0.00016611,2]
[390600913,1760101842183,-2664.9,0.00016611,2]
[390600914,1760101842192,-2664.9,0.00016611,2]
[390600915,1760101842201,-43291.73783966,0.00016612,2]
[390600916,1760101842211,-18603.8837,0.00016639,2]
[390600917,1760101842220,-151.0,0.00016639,2]
[390600918,1760101842229,-151.0,0.00016657,2]
[390600919,1760101842238,-190.36153996,0.00016657,2]
[390600920,1760101842247,-180.50174715,0.00016657,2]
[390600921,1760101842256,-151.0,0.00016657,2]
[390600922,1760101842266,-626.98,0.00016667,2]
[390600923,1760101842275,-941.94,0.00016711,2]
[390600924,1760101842284,-941.94,0.00016711,2]
[390600925,1760101842293,-941.94,0.00016711,2]